lending/lending_fUSD_20240504
["ID","MTS","AMOUNT","RATE_DAILY","PERIOD"]
[325380548,1714793441861,-169.3,0.000303,2]
[325380549,1714793441871,-173.050411,0.00030348,30]
[325380550,1714793441881,-160.50983138,0.0003043,7]
[325380551,1714793441890,-150.0,0.00030443,7]
[325380552,1714793441899,-153.69,0.00030482,2]
[325380553,1714793441908,-6157.40027752,0.00030492,3]
[325380554,1714793441918,-509.79936908,0.00030492,120]
[325380555,1714793441927,-1744.77525691,0.00030492,10]
[325380556,1714793441937,-705.01126091,0.00030492,120]
[325380557,1714793441947,-438.02095226,0.00030492,120]
[325380558,1714793441956,-14398.96365944,0.00030492,3]
[325380559,1714793441966,-5156.7385629,0.00030492,3]
[325380560,1714793441976,-396.98588478,0.00030492,120]
[325380561,1714793441986,-529.45001226,0.00030492,2]
[325380562,1714793441996,-2097.67858662,0.00030492,120]
[325380563,1714793442006,-1056.39309986,0.00030492,120]
[325380564,1714793442016,-256.15142926,0.00030492,120]
[325380565,1714793442026,-1141.18673212,0.00030492,120]
[325380566,1714793442035,-946.66917782,0.00030492,120]
[325380567,1714793442045,-452.84389404,0.00030492,30]
[325380568,1714793442055,-362.07800116,0.00030492,120]
[325380569,1714793442064,-55595.25593247,0.00030492,3]
[325380570,1714793442074,-3849.24368075,0.00030492,3]
[325380571,1714793442083,-3516.15927582,0.00030492,120]
[325380572,1714793442093,-11119.67939926,0.00030492,2]
[325380573,1714793442103,-1909.88961691,0.00030492,20]
[325380574,1714793442114,-150.0,0.00030492,3]
[325380575,1714793442123,-1000.0,0.00030492,60]
[325380576,1714793442134,-1000.0,0.00030492,60]
[325380577,1714793442143,-1000.0,0.00030492,60]
[325380578,1714793442153,-1000.0,0.00030492,60]
[325380579,1714793442162,-1000.0,0.00030492,60]
[325380580,1714793442171,-1000.0,0.00030492,30]
[325380581,1714793442181,-1000.0,0.00030492,30]
[325380582,1714793442190,-1000.0,0.00030492,60]
[325380583,1714793442200,-541.6794704,0.00030492,120]
[325380584,1714793442210,-424.1305,0.00030492,30]
[325380585,1714793442219,-151.48,0.00030492,2]
[325380586,1714793442228,-700.0,0.00030492,30]
[325380587,1714793442238,-5225.64374217,0.00030492,30]
[325380588,1714793442247,-152.3876061,0.00030492,30]
[325380589,1714793442257,-1537.46892114,0.00030492,2]
[325380590,1714793442266,-823.62467001,0.00030492,120]
[325380591,1714793442276,-236.025621,0.00030492,4]
[325380592,1714793442285,-777.62854899,0.00030492,2]
[325380593,1714793442294,-1121.04565005,0.00030492,120]
[325380594,1714793442304,-150.0,0.00030615,7]
[325380595,1714793442314,-152.28521623,0.00030632,7]
[325380596,1714793442323,-150.0,0.00030787,7]
[325380597,1714793442332,-150.45,0.00030822,2]
[325380598,1714793442344,-1170.9782,0.0003088,2]
[325380599,1714793442355,-157.2143906,0.00030905,7]
[325380600,1714793442364,-150.0,0.00030941,2]
[325380601,1714793442373,-194.34090633,0.00030959,7]
[325380602,1714793442383,-840.4699794,0.00030959,2]
[325380603,1714793442394,-206.108545,0.00030959,2]
[325380604,1714793442403,-571.7891871,0.00030959,2]
[325380605,1714793442413,-1007.0298507,0.00030959,2]
[325380606,1714793442424,-2431.6595953,0.00030959,2]
[325380607,1714793442433,-11403.3823105,0.00030959,2]
[325380608,1714793442442,-153.69,0.0003097,2]
[325380609,1714793442451,-161367.7525585,0.0003098,2]
[325380610,1714793442464,-777458.38374637,0.0003098,2]
[325380611,1714793442473,-161407.80601342,0.0003098,2]
[325380612,1714793443365,-80623.22158228,0.0003098,2]
[325380616,1714793443950,-206.01351814,0.000129,2]
[325380617,1714793443959,-296.35520319,0.0003098,2]
[325380618,1714793443971,-4716.21657647,0.0003098,2]
[325380619,1714793443983,-1464.85383896,0.0003098,2]
[325380620,1714793443995,-562.48039232,0.0003098,2]
[325380621,1714793444062,-1050.0,0.0003098,2]
[325380622,1714793444074,-552.33090042,0.0003098,2]
[325380623,1714793444085,-500.49766,0.0003098,2]
[325380624,1714793444098,-356.19588052,0.0003098,2]
[325380625,1714793444110,-1342.22,0.0003098,2]
[325380626,1714793444122,-892.19844599,0.0003098,2]
[325380627,1714793444134,-3071.67366517,0.0003098,2]
[325380628,1714793444861,-684.0084,0.00012899,2]
[325380629,1714793444872,-1466.36548278,0.00012999,2]
[325380630,1714793444883,-200.13093339,0.00028,2]
[325380631,1714793444892,-683.19377296,0.0003098,2]
[325380632,1714793444903,-8252.32631739,0.0003098,2]
[325380633,1714793444915,-333.33157814,0.0003098,2]
[325380634,1714793444927,-1223.34715648,0.0003098,2]
[325380635,1714793446640,-560.56616317,0.00012998,2]
[325380636,1714793446652,-150.0,0.00015742,2]
[325380637,1714793446661,-155.28488191,0.00017259,2]
[325380638,1714793446670,-206.01351814,0.000264,2]
[325380639,1714793446679,-666.55,0.00027397,10]
[325380640,1714793446689,-7472.15615091,0.0003098,2]
[325380641,1714793446839,-150.0,0.00015634,2]
[325380642,1714793446848,-3072.79786915,0.0003098,2]
[325380662,1714794631583,-338.47689987,0.00013972,2]
[325380663,1714794631595,-58.68427134,0.00013972,2]
[325380664,1714794631605,-364.19163348,0.00013973,2]
[325380665,1714794631614,-155.0,0.00013974,2]
[325380666,1714794631625,-536.56930293,0.00013975,2]
[325380667,1714794631634,-197.07789238,0.00013976,2]
[325380668,1714794631647,-397.08384421,0.00013976,2]
[325380669,1714794631660,-432.32117938,0.00013976,2]
[325380670,1714794631670,-2653.90192616,0.00014,2]
[325380671,1714794631701,-4279.80979385,0.00014,2]
[325380672,1714794631710,-281.94220496,0.00014,2]
[325380673,1714794631719,-643.0,0.00015,2]
[325380674,1714794631730,-150.0,0.00017123,2]
[325380675,1714794631743,-499.99,0.00017808,2]
[325380676,1714794631754,-300.0,0.000179,2]
[325380677,1714794631763,-222.23447918,0.00018,2]
[325380678,1714794631773,-206.64410323,0.00018,3]
[325380679,1714794631802,-243.35589677,0.00018,3]
[325380680,1714794631812,-500.0,0.00019882,2]
[325380681,1714794631822,-500.0,0.00019891,2]
[325380682,1714794631831,-500.0,0.000199,2]
[325380683,1714794631840,-500.0,0.0002,3]
[325380684,1714794631849,-155.0,0.000209,2]
[325380685,1714794631859,-860.48028371,0.00020999,2]
[325380686,1714794631869,-2042.12115463,0.00021,2]
[325380687,1714794631878,-209.08,0.00021644,2]
[325380688,1714794631889,-1093.72,0.00021757,2]
[325380689,1714794631899,-200.0,0.00021814,2]
[325380690,1714794631908,-550.0,0.00022,3]
[325380691,1714794631917,-342.11261671,0.00023232,2]
[325380692,1714794631928,-600.0,0.00024,3]
[325380693,1714794631937,-155.0,0.00025744,2]
[325380694,1714794631947,-250.0,0.00025745,2]
[325380695,1714794631957,-250.0,0.0002576,2]
[325380696,1714794631966,-2000.0,0.00025837,2]
[325380697,1714794631975,-150.8,0.00025838,120]
[325380698,1714794631985,-200.0,0.00025838,2]
[325380699,1714794631994,-205.68,0.00025876,2]
[325380700,1714794632004,-161.34,0.00025897,15]
[325380701,1714794632013,-3702.79346696,0.00025916,2]
[325380702,1714794632025,-1739.4,0.00025916,2]
[325380703,1714794632066,-280.56667432,0.00025916,2]
[325380708,1714794637511,-499.99,0.00017534,2]
[325380709,1714794637522,-860.48028371,0.0002,2]
[325380710,1714794637533,-391.36244968,0.00025916,2]
[325380711,1714794637645,-365.26900912,0.00025916,2]
[325380712,1714794637688,-633.82839992,0.00025916,2]
[325380713,1714794637699,-137.82686259,0.00025985,2]
[325380714,1714794637744,-62.17313741,0.00025985,2]
[325380715,1714794637754,-650.0,0.00026,3]
[325380716,1714794637764,-500.0,0.00026107,2]
[325380717,1714794637775,-174.62,0.00026143,2]
[325380718,1714794637785,-1000.0,0.00027397,30]
[325380719,1714794637795,-150.45,0.00027397,2]
[325380720,1714794637806,-209.08,0.00027714,2]
[325380721,1714794637818,-400.0,0.00028199,120]
[325380722,1714794637827,-200.0,0.00029067,2]
[325380723,1714794637836,-150.0,0.0002925,2]
[325380724,1714794637846,-500.0,0.00029323,2]
[325380725,1714794637855,-1845.42494535,0.00029429,2]
[325380726,1714794637864,-259.9786928,0.000295,3]
[325380727,1714794637874,-150.8,0.00030144,120]
[325380728,1714794637883,-1447.95701901,0.00030342,2]
[325380729,1714794637893,-12013.83774393,0.00030359,4]
[325380730,1714794637903,-1067.22012363,0.0003036,2]
[325380731,1714794637912,-424.1305,0.00030442,30]
[325380732,1714794637922,-1000.0,0.00030442,60]
[325380733,1714794637932,-1000.0,0.00030442,30]
[325380734,1714794637941,-1000.0,0.00030442,60]
[325380735,1714794637951,-1000.0,0.00030442,60]
[325380736,1714794637961,-1000.0,0.00030442,60]
[325380737,1714794637971,-1000.0,0.00030442,30]
[325380738,1714794637981,-1000.0,0.00030442,30]
[325380739,1714794637991,-1000.0,0.00030442,30]
[325380740,1714794638000,-151.48,0.00030442,2]
[325380741,1714794638010,-150.0,0.00030442,3]
[325380742,1714794638020,-155.62617228,0.00030496,7]
[325380743,1714794638029,-155.74029926,0.00030545,7]
[325380744,1714794638039,-1447.957019,0.00030561,2]
[325380745,1714794638048,-157.2143906,0.00030632,7]
[325380746,1714794638059,-18272.04367929,0.0003073,3]
[325380747,1714794638069,-200.0,0.00030731,2]
[325380748,1714794638078,-1000.0,0.00030731,10]
[325380749,1714794638088,-200.0,0.00030731,7]
[325380750,1714794638097,-500.0,0.00030731,2]
[325380751,1714794638107,-200.0,0.00030732,2]
[325380752,1714794638117,-200.0,0.00030732,2]
[325380753,1714794638126,-1000.0,0.00030732,10]
[325380754,1714794638136,-500.0,0.00030732,2]
[325380755,1714794638145,-200.0,0.00030732,2]
[325380756,1714794638155,-648.6939,0.00030779,2]
[325380757,1714794638165,-1447.957019,0.00030779,2]
[325380758,1714794638175,-157.2143906,0.00030834,7]
[325380759,1714794638184,-555.46,0.00030869,10]
[325380760,1714794638194,-227733.8693,0.00030879,7]
[325380761,1714794638203,-4027.0617,0.00030879,2]
[325380762,1714794638213,-197.00377711,0.00030879,2]
[325380763,1714794638223,-1003.24776681,0.00030879,2]
[325380764,1714794638233,-332.64196906,0.00030879,2]
[325380765,1714794638242,-161.20552432,0.0003088,2]
[325380766,1714794638252,-212.8894,0.0003088,2]
[325380767,1714794638262,-10922.49018354,0.0003088,2]
[325380768,1714794638271,-1001.5125,0.00030899,2]
[325380769,1714794638280,-342.0,0.000309,3]
[325380770,1714794638293,-150.0,0.000309,6]
[325380771,1714794638303,-800.0,0.00030959,2]
[325380772,1714794638313,-153.69,0.00030969,2]
[325380773,1714794638323,-448.80218963,0.00030975,4]
[325380774,1714794638333,-1159.41602652,0.00030976,120]
[325380775,1714794638343,-3665.47724467,0.00030976,4]
[325380776,1714794638353,-9420.31798174,0.00030976,4]
[325380777,1714794638362,-619.06155643,0.00030978,4]
[325380778,1714794638372,-1344.57688566,0.00030978,4]
[325380779,1714794638382,-155.3142834,0.00030978,4]
[325380780,1714794638391,-184.05186467,0.00030978,4]
[325380781,1714794638401,-1721.46923575,0.00030978,4]
[325380782,1714794638411,-158.02202847,0.00030979,4]
[325380783,1714794638421,-2406.33895432,0.00030979,4]
[325380784,1714794638430,-2597.76550705,0.00030979,3]
[325380785,1714794638440,-394956.64906335,0.00030979,2]
[325380786,1714794638451,-561.7432899,0.00030979,2]
[325380787,1714794638461,-858.3674789,0.00030979,2]
[325380788,1714794638472,-4792.0780053,0.00030979,2]
[325380789,1714794638482,-893.02647155,0.00030979,2]
[325380790,1714794638492,-940.5475793,0.00030979,2]
[325380791,1714794638501,-240.6738007,0.00030979,2]
[325380792,1714794638511,-8370.1405466,0.00030979,2]
[325380793,1714794638520,-468.1194082,0.00030979,2]
[325380794,1714794638530,-349.2993171,0.00030979,2]
[325380795,1714794638540,-513.0,0.0003098,5]
[325380796,1714794638550,-509164.18600302,0.0003098,2]
[325380797,1714794638564,-80623.22158228,0.0003098,2]
[325380800,1714794639563,-1930.7774079,0.0003098,2]
[325380801,1714794639576,-723.52699985,0.0003098,2]
[325380802,1714794639623,-159186.56262838,0.0003098,2]
[325380803,1714794639633,-549.4895686,0.0003098,4]
[325380804,1714794639643,-351.36411591,0.0003098,14]
[325380805,1714794639654,-1606.44164946,0.0003098,4]
[325380806,1714794639664,-3000.0,0.0003098,2]
[325380807,1714794639674,-800.0,0.00030986,2]
[325380808,1714794639683,-800.0,0.00030986,2]
[325380809,1714794639694,-159.151085,0.00031,2]
[325380810,1714794639704,-157.19407016,0.00031109,7]
[325380811,1714794639713,-158.35552517,0.00031244,7]
[325380812,1714794639723,-152.28521623,0.00031389,7]
[325380813,1714794639735,-155.62617228,0.00031669,7]
[325380814,1714794639752,-400.0,0.00031723,120]
[325380815,1714794639762,-160.50983139,0.00031878,7]
[325380816,1714794639772,-10922.49018345,0.00031924,3]
[325380817,1714794639784,-197.00377706,0.00032064,2]
[325380818,1714794639794,-1003.24776673,0.00032064,2]
[325380819,1714794639803,-155.62617228,0.00032237,7]
[325380820,1714794639814,-171.20102462,0.00032285,7]
[325380821,1714794639824,-200.0,0.00032297,2]
[325380822,1714794639834,-157.19407016,0.0003257,7]
[325380823,1714794639844,-155.74029926,0.00032575,7]
[325380824,1714794639853,-156.01516043,0.00032642,7]
[325380825,1714794639863,-211.0,0.0003271,2]
[325380826,1714794639872,-166.66666666,0.00032715,7]
[325380827,1714794639882,-161.34,0.00032747,15]
[325380828,1714794639892,-156.53825322,0.00032886,7]
[325380829,1714794639902,-158.4359637,0.000329,30]
[325380830,1714794639912,-157.19407016,0.00032941,7]
[325380831,1714794639922,-10922.49018345,0.00032968,4]
[325380832,1714794639932,-150.0,0.00033,2]
[325380833,1714794639941,-197.00377706,0.00033249,2]
[325380834,1714794639951,-1003.24776673,0.00033249,2]
[325380835,1714794639961,-154.62351651,0.00033308,7]
[325380836,1714794639971,-206.91,0.00033785,2]
[325380837,1714794639981,-209.08,0.00033785,2]
[325380838,1714794639991,-150.0,0.00033841,120]
[325380839,1714794640001,-162.19383012,0.00033849,7]
[325380840,1714794640012,-155.62617228,0.00033878,7]
[325380841,1714794640023,-211.0,0.0003395,2]
[325380842,1714794640032,-10922.49018345,0.00034012,6]
[325380843,1714794640042,-157.2143906,0.0003417,7]
[325380844,1714794640051,-150.45,0.00034247,2]
[325380845,1714794640060,-156.53825322,0.00034276,7]
[325380846,1714794640071,-173.050411,0.00034348,34]
[325380847,1714794640080,-197.00377706,0.00034434,2]
[325380848,1714794640090,-1003.24776673,0.00034434,2]
[325380849,1714794640100,-150.8,0.0003445,120]
[325380850,1714794640110,-156.53825322,0.00034499,7]
[325380851,1714794640119,-150.0,0.00034548,10]
[325380852,1714794640129,-156.04116057,0.0003456,7]
[325380853,1714794640138,-911.73,0.00034561,2]
[325380854,1714794640148,-830.15,0.00034561,2]
[325380855,1714794640158,-911.73,0.00034561,2]
[325380856,1714794640168,-911.73,0.00034561,2]
[325380857,1714794640177,-911.73,0.00034561,2]
[325380858,1714794640187,-152.28521623,0.00034566,7]
[325380859,1714794640197,-152.28521623,0.00034568,7]
[325380860,1714794640206,-1484.185031,0.00034627,2]
[325380861,1714794640216,-230.410381,0.00034627,2]
[325380862,1714794640226,-1000.0,0.00034636,10]
[325380863,1714794640235,-689.052967,0.00034644,2]
[325380864,1714794640245,-354.25,0.00034835,2]
[325380865,1714794640254,-26326.18487517,0.000349,2]
[325380866,1714794640264,-1835.4178867,0.00035,4]
[325380867,1714794640274,-653.27608532,0.00035,30]
[325380868,1714794640283,-167.41054016,0.00035,4]
[325380869,1714794640293,-10922.49018345,0.00035056,7]
[325380870,1714794640302,-1484.185031,0.0003506,2]
[325380871,1714794640311,-689.052967,0.00035077,2]
[325380872,1714794640320,-155.62617228,0.00035117,7]
[325380873,1714794640330,-1000.0,0.00035184,10]
[325380874,1714794640339,-211.0,0.0003519,2]
[325380875,1714794640349,-400.0,0.00035248,120]
[325380876,1714794640359,-157.19407016,0.00035304,7]
[325380877,1714794640368,-156.53825322,0.00035402,7]
[325380878,1714794640378,-900.0,0.00035458,10]
[325380879,1714794640387,-500.0,0.00035458,10]
[325380880,1714794640396,-162.19383012,0.00035466,7]
[325380881,1714794640407,-1484.185031,0.00035493,2]
[325380882,1714794640416,-689.052967,0.0003551,2]
[325380883,1714794640426,-152.28521623,0.00035511,7]
[325380884,1714794640442,-200.0,0.00035527,2]
[325380885,1714794640452,-2206.27794706,0.000356,30]
[325380886,1714794640462,-1777.85873092,0.000356,2]
[325380887,1714794640472,-197.00377706,0.00035619,2]
[325380888,1714794640482,-1003.24776673,0.00035619,2]
[325380889,1714794640491,-169.68304173,0.0003562,7]
[325380890,1714794640501,-156.46680929,0.00035707,7]
[325380891,1714794640510,-1000.0,0.00035732,10]
[325380892,1714794640520,-160.02224342,0.00035791,7]
[325380893,1714794640530,-162.19383012,0.00035812,7]
[325380894,1714794640539,-168.88,0.000359,2]
[325380895,1714794640548,-156.72,0.000359,2]
[325380896,1714794640558,-1594.59560494,0.000359,2]
[325380897,1714794640568,-1594.59560488,0.000359,2]
[325380898,1714794640577,-155.74029926,0.00035923,7]
[325380899,1714794640586,-1484.185031,0.00035926,2]
[325380900,1714794640596,-689.052967,0.00035943,2]
[325380901,1714794640606,-3000.0,0.0003598,2]
[325380902,1714794640615,-151.33529247,0.00036,4]
[325380903,1714794640624,-150.0,0.00036,7]
[325380904,1714794640634,-900.0,0.00036006,10]
[325380905,1714794640644,-10922.49018345,0.000361,8]
[325380906,1714794640653,-1000.0,0.0003628,10]
[325380907,1714794640663,-157.19407016,0.00036312,7]
[325380908,1714794640673,-1484.185031,0.00036358,2]
[325380909,1714794640682,-689.052967,0.00036376,2]
[325380910,1714794640692,-211.0,0.0003642,2]
[325380911,1714794640701,-203.0,0.0003642,2]
[325380912,1714794640710,-900.0,0.00036554,10]
[325380913,1714794640719,-506.73843629,0.00036554,10]
[325380914,1714794640728,-155.62617228,0.00036605,7]
[325380915,1714794640738,-155.62617228,0.00036669,7]
[325380916,1714794640751,-182.71,0.00036712,2]
[325380917,1714794640760,-150.0,0.00036712,2]
[325380918,1714794640769,-150.0,0.00036712,2]
[325380919,1714794640779,-150.0,0.00036712,2]
[325380920,1714794640789,-305.45,0.00036712,2]
[325380921,1714794640798,-155.24895468,0.00036793,7]
[325380922,1714794640807,-197.00377706,0.00036803,2]
[325380923,1714794640817,-1003.24776673,0.00036803,2]
[325380924,1714794640827,-1000.0,0.00036828,10]
[325380925,1714794640836,-157.2143906,0.00036832,7]
[325380926,1714794640846,-12119.40284925,0.00037,10]
[325380927,1714794640857,-2000.0,0.00037,2]
[325380928,1714794640866,-875.40274544,0.00037,2]
[325380929,1714794640875,-155.62617228,0.00037044,7]
[325380930,1714794640885,-1033.0,0.00037088,5]
[325380931,1714794640895,-900.0,0.00037102,10]
[325380932,1714794640907,-205.68,0.00037109,120]
[325380933,1714794640915,-10922.49018345,0.00037145,10]
[325380934,1714794640925,-1000.0,0.00037376,10]
[325380935,1714794640934,-174.62,0.00037376,120]
[325380936,1714794640943,-11832.02537778,0.00037409,2]
[325380937,1714794640954,-900.0,0.0003765,10]
[325380938,1714794640964,-211.0,0.0003766,2]
[325380939,1714794640973,-203.0,0.0003766,2]
[325380940,1714794640983,-150.0,0.00037782,120]
[325380941,1714794640993,-43433.35711509,0.0003779,2]
[325380942,1714794641002,-1240.99051315,0.00037899,15]
[325380943,1714794641012,-15809.14932397,0.000379,2]
[325380944,1714794641021,-219.16198324,0.000379,2]
[325380945,1714794641030,-155.62617228,0.00037905,7]
[325380946,1714794641041,-222.24,0.0003798,15]
[325380947,1714794641050,-197.00377706,0.00037988,2]
[325380948,1714794641060,-1003.24776673,0.00037988,2]
[325380949,1714794641069,-150.5,0.0003799,15]
[325380950,1714794641079,-44862.55453647,0.00038,3]
[325380951,1714794641103,-886.45947666,0.00038,3]
[325380952,1714794641114,-516.456976,0.00038,3]
[325380953,1714794641283,-2944.99999991,0.00038,3]
[325380954,1714794641296,-899.20318369,0.00038,3]
[325380955,1714794641309,-2828.832935,0.00038,3]
[325380956,1714794641321,-2089.66046276,0.00038,3]
[325380957,1714794641333,-1635.10035228,0.00038,3]
[325380960,1714794642713,-460.32635449,0.000359,2]
[325380961,1714794642728,-1134.26925039,0.000359,2]
[325380962,1714794642742,-2063.79769676,0.00038,3]
[325380963,1714794642767,-3972.09929284,0.00038,3]
[325380964,1714794642779,-796.75772232,0.00038,3]
[325380965,1714794642823,-2711.27441456,0.00038,3]
[325380966,1714794642835,-486.91192548,0.00038,3]
[325380967,1714794642876,-967.37861202,0.00038,3]
[325380968,1714794642933,-605.5064531,0.00038,3]
[325380969,1714794642945,-289.20652,0.00038,3]
[325380970,1714794643039,-369.6844614,0.00037,2]
[325380971,1714794643052,-1114.9941457,0.00037,2]
[325380978,1714794646259,-515.3213929,0.00037,2]
[325380979,1714794646268,-340.13928903,0.00037999,4]
[325380980,1714794646278,-7742.82078166,0.00038,3]
[325380981,1714794646289,-458.09629476,0.00038,3]
[325380982,1714794646323,-236.88023079,0.00037999,3]
[325380983,1714794646332,-16722.15294561,0.00038,3]
[325380984,1714794646345,-1968.22496569,0.00038,3]
[325380985,1714794646356,-4281.93169647,0.00038,3]
[325380986,1714794646367,-10462.89910724,0.00038,3]
[325380987,1714794646391,-2218.45898703,0.00038,3]
[325380988,1714794646451,-1145.62207892,0.00038,3]
[325380989,1714794646503,-660.69999998,0.00038,3]
[325380990,1714794646516,-348.5255592,0.00038,3]
[325380993,1714794717719,150.0,6.94e-05,2]
[325380994,1714794717741,150.0,6.94e-05,2]
[325380995,1714794717763,150.0,6.94e-05,2]
[325380996,1714794717786,150.0,6.94e-05,2]
[325380997,1714794717807,2.65549725,6.94e-05,2]
[325381033,1714795831778,-157.43768443,0.00011677,2]
[325381034,1714795831788,-534.79759922,0.00011678,2]
[325381035,1714795831797,-195.33364297,0.00011688,2]
[325381036,1714795831807,-403.79619401,0.0001288,2]
[325381037,1714795831923,-1047.64718629,0.0001288,2]
[325381038,1714795831950,-1331.51206549,0.0001288,2]
[325381044,1714795838287,-266.75403132,0.0001288,2]
[325381045,1714795838306,-942.96050353,0.0001288,2]
[325381046,1714795838356,-351.20101936,0.0001288,2]
[325381047,1714795838366,-1241.45584603,0.00012899,2]
[325381048,1714795838398,-450.39160361,0.00012899,2]
[325381049,1714795838409,-526.19291629,0.00012899,2]
[325381050,1714795838418,-164.35577771,0.000129,2]
[325381051,1714795838427,-8230.6351,0.000129,2]
[325381052,1714795838437,-276.366,0.000129,2]
[325381053,1714795838448,-838.4039,0.000129,2]
[325381054,1714795838457,-6399.37002918,0.000129,2]
[325381055,1714795838467,-165.76896419,0.000129,2]
[325381056,1714795838477,-296.971,0.000129,2]
[325381057,1714795838487,-252.83180547,0.000129,2]
[325381058,1714795838496,-332.0545193,0.000129,2]
[325381059,1714795838506,-3011.3421,0.000129,2]
[325381060,1714795838516,-257.39021498,0.000129,2]
[325381061,1714795838525,-697.74154792,0.000129,2]
[325381062,1714795838534,-187.6141999,0.00012978,2]
[325381063,1714795838544,-3665.47724467,0.00012979,2]
[325381064,1714795838555,-448.80218963,0.00012979,2]
[325381065,1714795838564,-142329.22300769,0.0001298,2]
[325381066,1714795838574,-417.8,0.0001298,2]
[325381067,1714795838584,-600.0,0.00012986,2]
[325381068,1714795838593,-213.26,0.0001299,2]
[325381069,1714795838603,-213.26,0.0001299,2]
[325381070,1714795838612,-213.26,0.0001299,2]
[325381071,1714795838621,-213.26,0.0001299,2]
[325381072,1714795838631,-213.26,0.0001299,2]
[325381073,1714795838641,-213.26,0.0001299,2]
[325381074,1714795838650,-213.26,0.0001299,2]
[325381075,1714795838660,-213.26,0.0001299,2]
[325381076,1714795838669,-213.26,0.0001299,2]
[325381077,1714795838679,-213.26,0.0001299,2]
[325381078,1714795838688,-189.92885949,0.0001299,2]
[325381079,1714795838698,-189.92885949,0.0001299,2]
[325381080,1714795838708,-1318.24761361,0.00012998,2]
[325381081,1714795838717,-711.79170587,0.00012998,2]
[325381082,1714795838727,-161.74102731,0.00012998,2]
[325381083,1714795838737,-155.76867218,0.00012998,2]
[325381084,1714795838747,-715.22293148,0.00012999,2]
[325381085,1714795838760,-249.32809512,0.00012999,2]
[325381086,1714795838769,-300.72897799,0.00012999,2]
[325381087,1714795838778,-184.07887674,0.00012999,2]
[325381088,1714795838787,-155.59428779,0.00012999,2]
[325381089,1714795838796,-891.59008358,0.00012999,2]
[325381090,1714795838806,-3250.19764459,0.00012999,2]
[325381091,1714795838816,-1069826.02772306,0.00013,2]
[325381092,1714795838828,-80623.22158228,0.00013,2]
[325381093,1714795838840,-531.79482725,0.00013,2]
[325381094,1714795838905,-6864.62995654,0.00013,2]
[325381095,1714795838926,-985980.15999038,0.00013,2]
[325381096,1714795838945,-254329.64279514,0.00013,2]
[325381097,1714795838957,-2183.16426548,0.00013,2]
[325381109,1714795839861,-349.0234849,0.00013,2]
[325381110,1714795839873,-726.04999996,0.00013,2]
[325381115,1714795839917,-2942.69534158,0.00013,2]
[325381131,1714795840079,-974.90789925,0.00013,2]
[325381134,1714795840091,-623.26266108,0.00013,2]
[325381139,1714795840138,-733.881,0.00013,2]
[325381141,1714795840150,-2940.96388949,0.00013,2]
[325381163,1714795842843,-1333.29577157,0.00013,2]
[325381164,1714795842898,-380.00021708,0.00013,2]
[325381165,1714795842953,-4409.61176637,0.00013,2]
[325381166,1714795843010,-2951.52100116,0.00013,2]
[325381167,1714795843067,-432.16,0.00013,2]
[325381168,1714795843133,-8904.52939792,0.00013,2]
[325381171,1714795845852,-534.79759922,0.00012999,2]
[325381172,1714795845863,-432.27376011,0.00013,2]
[325381173,1714795845907,-9657.94829999,0.00013,2]
[325381180,1714796026390,761.0,0.00025108,120]
[325381181,1714796041482,250.0,0.00011698,2]
[325381182,1714796057346,-2218.04036593,0.00011697,2]
[325381183,1714796057368,-1016.54368406,0.00011698,2]
[325381184,1714796057392,-264.74676282,0.00011699,2]
[325381185,1714796077400,5294.9492,0.00011598,2]
[325381187,1714796427815,-534.79759922,0.00012799,2]
[325381188,1714796427836,-838.4039,0.000128,2]
[325381189,1714796427856,-855.88782093,0.00012869,2]
[325381190,1714796427877,-670.14514561,0.00012872,2]
[325381191,1714796427900,-355.6058,0.0001288,2]
[325381192,1714796427925,-600.0,0.00012886,2]